bitfinex-derivatives/quotes_BTCF0:USTF0_20250308
["timestamp","ask_amount","ask_price","bid_price","bid_amount"]
[1741435074065,0.11643764,85985.0,85984.0,0.5062149]
[1741435074364,0.03101744,85985.0,85984.0,0.5062149]
[1741435075062,0.54999987,85985.0,85984.0,0.0290933]
[1741435075263,0.54999987,85985.0,85984.0,0.1454149]
[1741435075471,0.42211744,85985.0,85984.0,0.1454149]
[1741435075662,0.42211744,85985.0,85984.0,0.0907933]
[1741435075864,0.53843764,85985.0,85984.0,0.0607933]
[1741435076262,0.06131744,85985.0,85984.0,0.1771149]
[1741435077065,0.42211744,85985.0,85984.0,0.1771149]
[1741435077369,0.53843764,85985.0,85984.0,0.06072594]
[1741435077770,0.53843764,85985.0,85984.0,0.06073026]
[1741435078070,0.42211744,85985.0,85984.0,0.06073026]
[1741435078264,0.06131744,85985.0,85984.0,0.17705186]
[1741435078465,0.14143744,85985.0,85984.0,0.17705186]
[1741435078765,0.61855764,85985.0,85984.0,0.17705186]
[1741435079666,0.61855764,85985.0,85984.0,0.06073026]
[1741435080265,0.61855764,85985.0,85984.0,0.02903026]
[1741435080467,0.61855764,85985.0,85984.0,0.3539988]
[1741435081062,0.61855764,85985.0,85984.0,0.3842988]
[1741435081263,0.5383202,85985.0,85984.0,0.2376772]
[1741435081464,0.6182402,85985.0,85984.0,0.2376772]
[1741435082269,0.6183744,85985.0,85984.0,0.2376772]
[1741435082471,0.61832981,85985.0,85984.0,0.2376772]
[1741435082774,0.6182402,85985.0,85984.0,0.23767332]
[1741435084579,0.6182402,85985.0,85984.0,0.22421868]
[1741435084878,0.75765512,85985.0,85984.0,0.01557174]
[1741435085070,0.39685512,85985.0,85984.0,0.01557174]
[1741435085265,1.11845512,85985.0,85984.0,0.001]
[1741435086577,1.11860444,85985.0,85984.0,0.001]
[1741435086769,1.11845512,85985.0,85984.0,0.001]
[1741435087176,1.11854314,85985.0,85984.0,0.001]
[1741435087377,1.11857627,85985.0,85984.0,0.001]
[1741435087573,1.11845512,85985.0,85984.0,0.001]
[1741435089981,0.9790402,85985.0,85984.0,0.001]
[1741435092679,0.97918268,85985.0,85984.0,0.001]
[1741435092978,0.9790402,85985.0,85984.0,0.001]
[1741435094089,0.9790402,85985.0,85974.0,0.0635]
[1741435094090,0.1163338,85975.0,85974.0,0.0635]
[1741435094382,0.1163365,85973.0,85972.0,0.00017451]
[1741435094687,0.5566565,85973.0,85972.0,0.00017451]
[1741435095083,0.6197565,85973.0,85972.0,0.00017451]
[1741435095681,0.6197565,85973.0,85972.0,0.01465074]
[1741435096082,0.63723651,85973.0,85972.0,0.01465074]
[1741435096288,0.6197565,85973.0,85972.0,0.01465074]
[1741435096483,0.63723651,85973.0,85972.0,0.01465074]
[1741435097090,0.63723651,85973.0,85972.0,0.04545074]
[1741435097391,0.63723651,85973.0,85972.0,0.01465074]
[1741435097575,0.63736007,85973.0,85972.0,0.04545074]
[1741435097779,0.63738516,85973.0,85972.0,0.04545074]
[1741435097977,0.63736313,85973.0,85972.0,0.04545074]
[1741435098191,0.63723651,85973.0,85972.0,0.01465074]
[1741435098486,0.63723651,85973.0,85972.0,0.04545074]
[1741435098679,0.63723651,85973.0,85972.0,0.05866324]
[1741435099683,0.63723651,85973.0,85972.0,0.04545074]
[1741435100289,0.64223651,85973.0,85972.0,0.04545074]
[1741435101387,0.60943651,85973.0,85972.0,0.04545074]
[1741435101787,0.60943651,85973.0,85972.0,0.05873378]
[1741435103788,0.60943651,85973.0,85972.0,0.04545074]
[1741435104288,0.60955568,85973.0,85972.0,0.04545074]
[1741435104589,0.60943651,85973.0,85972.0,0.00017451]
[1741435104984,0.1163487,85964.0,85963.0,0.03]
[1741435105184,0.4771487,85964.0,85963.0,0.03]
[1741435105796,0.5390487,85964.0,85963.0,0.03]
[1741435106394,0.5420487,85964.0,85963.0,0.03]
[1741435107391,0.5410487,85964.0,85963.0,0.03]
[1741435107581,0.5430487,85964.0,85963.0,0.03]
[1741435108390,0.54313698,85964.0,85963.0,0.03]
[1741435108692,0.5410487,85964.0,85963.0,0.03]
[1741435108994,0.54616655,85964.0,85963.0,0.03]
[1741435109192,0.54615914,85964.0,85963.0,0.03]
[1741435109390,0.5461774,85964.0,85963.0,0.03]
[1741435109590,0.54619661,85964.0,85963.0,0.03]
[1741435109784,0.5460487,85964.0,85963.0,0.03]
[1741435110594,0.55779759,85964.0,85963.0,0.03]
[1741435111397,0.55779759,85964.0,85955.0,0.00017451]
[1741435111398,0.1163595,85956.0,85955.0,0.00017451]
[1741435111698,0.5561995,85956.0,85955.0,0.00017451]
[1741435112086,0.5561995,85956.0,85955.0,0.06217451]
[1741435112291,0.6178995,85956.0,85955.0,0.06217451]
[1741435113687,0.61898989,85956.0,85955.0,0.06217451]
[1741435113889,0.61904819,85956.0,85955.0,0.06217451]
[1741435114089,0.6188995,85956.0,85955.0,0.06217451]
[1741435114294,0.61900118,85956.0,85955.0,0.06217451]
[1741435114502,0.6188995,85956.0,85955.0,0.06217451]
[1741435114892,0.62103425,85956.0,85955.0,0.06217451]
[1741435115195,0.6208995,85956.0,85955.0,0.06217451]
[1741435116394,0.63837951,85956.0,85955.0,0.06217451]
[1741435118400,0.63837951,85956.0,85955.0,0.00017451]
[1741435119405,0.63846515,85956.0,85955.0,0.00017451]
[1741435119708,0.64337951,85956.0,85955.0,0.00117451]
[1741435121002,0.64440476,85956.0,85955.0,0.00117451]
[1741435121203,0.64740476,85956.0,85955.0,0.00217451]
[1741435122504,0.28457951,85956.0,85955.0,0.00217451]
[1741435122710,1.00617951,85956.0,85955.0,0.00217451]
[1741435122905,1.00820476,85956.0,85955.0,0.00217451]
[1741435123107,1.00833925,85956.0,85955.0,0.00217451]
[1741435123407,1.00820476,85956.0,85955.0,0.00217451]
[1741435125612,1.00617951,85956.0,85955.0,0.00217451]
[1741435126012,1.00820476,85956.0,85955.0,0.00217451]
[1741435126513,0.92916476,85956.0,85955.0,0.00217451]
[1741435126710,1.00752476,85956.0,85955.0,0.00217451]
[1741435127213,0.94582476,85956.0,85955.0,0.00217451]
[1741435128617,0.94379951,85956.0,85955.0,0.00217451]
[1741435128817,0.94393763,85956.0,85955.0,0.00217451]
[1741435129018,0.94379951,85956.0,85955.0,0.00217451]
[1741435129814,1.04835136,85956.0,85955.0,0.00217451]
[1741435130020,1.0483528,85956.0,85955.0,0.00217451]
[1741435130213,1.04837821,85956.0,85955.0,0.00217451]
[1741435130411,1.04824204,85956.0,85955.0,0.00217451]
[1741435132417,0.96988204,85956.0,85955.0,0.00217451]
[1741435132624,0.91412253,85956.0,85955.0,0.00217451]
[1741435132819,0.91412253,85956.0,85955.0,0.11853531]
[1741435132820,0.11452877,85956.0,85955.0,0.11853531]
[1741435133121,0.19260877,85956.0,85955.0,0.11853531]
[1741435133320,0.19260877,85956.0,85955.0,0.18173531]
[1741435134411,0.18860877,85956.0,85955.0,0.18073531]
[1741435134811,0.18860877,85956.0,85955.0,0.17973531]
[1741435135013,0.18360877,85956.0,85955.0,0.17973531]
[1741435135216,0.30196827,85956.0,85955.0,0.17973531]
[1741435135418,0.30096827,85956.0,85955.0,0.17973531]
[1741435135624,0.30296827,85956.0,85955.0,0.17973531]
[1741435136213,0.18660877,85956.0,85955.0,0.17973531]
[1741435136811,0.10852877,85956.0,85955.0,0.17973531]
[1741435137619,0.10752877,85956.0,85955.0,0.1942741]
[1741435137815,0.10752877,85956.0,85955.0,0.3442741]
[1741435138015,0.10652877,85956.0,85955.0,0.3442741]
[1741435138418,0.10552877,85956.0,85955.0,0.3442741]
[1741435139017,0.00108624,85956.0,85955.0,0.3442741]
[1741435140615,0.00108624,85956.0,85955.0,0.1942741]
[1741435141730,0.00108624,85956.0,85955.0,0.17973531]
[1741435145125,0.0317,85965.0,85964.0,0.1163487]
[1741435145325,0.0628,85965.0,85964.0,0.1163487]
[1741435145916,0.0628,85965.0,85964.0,0.1784487]
[1741435146117,0.0629154,85965.0,85964.0,0.1784487]
[1741435146931,0.0669154,85965.0,85964.0,0.1784487]
[1741435147825,0.0699154,85965.0,85964.0,0.1784487]
[1741435148429,0.0709154,85965.0,85964.0,0.1784487]
[1741435148626,0.0081154,85965.0,85964.0,0.1784487]
[1741435149731,0.0081154,85965.0,85964.0,0.19294695]
[1741435150118,0.0081154,85965.0,85964.0,0.34294695]
[1741435150327,0.0081154,85965.0,85964.0,0.19294695]
[1741435150732,0.0081154,85965.0,85964.0,0.2048529]
[1741435150929,0.0071154,85965.0,85964.0,0.2048529]
[1741435152025,0.2011827,85965.0,85964.0,0.07659825]
[1741435152225,0.1981827,85965.0,85964.0,0.07659825]
[1741435152420,0.2011827,85965.0,85964.0,0.07659825]
[1741435152821,0.2656827,85965.0,85964.0,0.19294695]
[1741435153032,0.2656827,85965.0,85964.0,0.2062034]
[1741435153824,0.1493354,85965.0,85964.0,0.2062034]
[1741435155634,0.1493354,85965.0,85964.0,0.19168495]
[1741435155838,0.1493354,85965.0,85964.0,0.20627798]
[1741435156036,0.1493354,85965.0,85964.0,0.19304173]
[1741435157539,0.1493354,85965.0,85964.0,0.1784487]
[1741435159745,0.1493354,85965.0,85964.0,0.19298462]
[1741435160032,0.1815354,85965.0,85964.0,0.19298462]
[1741435160438,0.2978827,85965.0,85964.0,0.19298462]
[1741435161539,0.2975627,85965.0,85964.0,0.19298462]
[1741435161737,0.2975627,85965.0,85964.0,0.07663592]
[1741435162538,0.6583627,85965.0,85964.0,0.07663592]
[1741435163137,0.6543627,85965.0,85964.0,0.07663592]
[1741435163336,0.6583627,85965.0,85964.0,0.07663592]
[1741435164629,0.5420154,85965.0,85964.0,0.19298462]
[1741435165939,0.1812154,85965.0,85964.0,0.19298462]
[1741435167138,0.1762154,85965.0,85964.0,0.19298462]
[1741435167341,0.1792154,85965.0,85964.0,0.19298462]
[1741435167841,0.1772154,85965.0,85964.0,0.19298462]
[1741435168842,0.1742154,85965.0,85964.0,0.19298462]
[1741435169033,0.1772154,85965.0,85964.0,0.19298462]
[1741435169634,0.1792154,85965.0,85964.0,0.19298462]
[1741435170139,0.1450154,85965.0,85964.0,0.20624393]
[1741435170335,0.1470154,85965.0,85964.0,0.20624393]
[1741435170533,0.0795154,85965.0,85964.0,0.20624393]
[1741435170729,0.0805154,85965.0,85964.0,0.20624393]
[1741435170937,0.0825154,85965.0,85964.0,0.20624393]
[1741435171536,0.0825154,85965.0,85964.0,0.48442462]
[1741435173536,0.1463154,85965.0,85964.0,0.48442462]
[1741435173732,0.1483154,85965.0,85964.0,0.48447883]
[1741435174133,0.1483154,85965.0,85964.0,0.47116531]
[1741435175140,0.1483154,85965.0,85964.0,0.19298462]
[1741435176750,0.1154154,85965.0,85964.0,0.19298462]
[1741435177245,0.0051154,85965.0,85964.0,0.20636171]
[1741435179746,0.0694154,85965.0,85964.0,0.20641903]
[1741435181237,0.0369154,85965.0,85964.0,0.20641903]
[1741435181648,0.0369154,85965.0,85964.0,0.20644689]
[1741435182148,0.0051154,85965.0,85964.0,0.20644689]
[1741435182350,0.0380154,85965.0,85964.0,0.20644689]
[1741435182543,0.0051154,85965.0,85964.0,0.20644689]
[1741435183136,0.0051154,85965.0,85964.0,0.24699877]
[1741435183655,0.0051154,85965.0,85964.0,0.20644689]
[1741435183839,0.0051154,85965.0,85964.0,0.61753102]
[1741435188854,0.0051154,85965.0,85964.0,0.554858]
[1741435189555,0.0051154,85965.0,85964.0,0.54139573]
[1741435189753,0.0051154,85965.0,85964.0,0.55481836]
[1741435193146,0.0051154,85965.0,85964.0,0.20640725]
[1741435194047,0.0051154,85965.0,85964.0,0.24707087]
[1741435194353,0.07736,85969.0,85968.0,0.1163432]
[1741435194549,0.07736,85969.0,85968.0,0.12976583]
[1741435194951,0.0332,85972.0,85971.0,0.1163392]
[1741435195147,0.11056,85972.0,85971.0,0.12976183]
[1741435195348,0.14306702,85972.0,85971.0,0.14429775]
[1741435195749,0.14306702,85972.0,85971.0,0.17589775]
[1741435196759,0.14606702,85972.0,85971.0,0.17589775]
[1741435197358,0.14606702,85972.0,85971.0,0.18763736]
[1741435197656,0.15006702,85972.0,85971.0,0.18763736]
[1741435198654,0.15006702,85972.0,85971.0,0.1877931]
[1741435199250,0.07270702,85972.0,85971.0,0.1877931]
[1741435199450,0.04030702,85972.0,85971.0,0.1877931]
[1741435199652,0.00710702,85972.0,85971.0,0.1877931]
[1741435200258,0.00710702,85972.0,85971.0,0.22857993]
[1741435200452,0.00710702,85972.0,85971.0,0.1877931]
[1741435200760,0.00710702,85972.0,85971.0,0.2285695]
[1741435201249,0.00710702,85972.0,85971.0,0.2603695]
[1741435201449,0.00710702,85972.0,85971.0,0.30529784]
[1741435202059,0.00710702,85972.0,85971.0,0.65370895]
[1741435202363,0.00710702,85972.0,85971.0,0.87500895]
[1741435202661,0.00710702,85972.0,85971.0,0.83008061]
[1741435203756,0.00710702,85972.0,85971.0,0.87475214]
[1741435204258,0.061,85980.0,85971.0,0.75841294]
[1741435204463,0.0328,85979.0,85978.0,0.1163284]
[1741435204757,0.0328,85979.0,85978.0,0.12990677]
[1741435204953,0.0938,85979.0,85978.0,0.12990677]
[1741435205155,0.2101284,85979.0,85978.0,0.14444269]
[1741435205366,0.21024604,85979.0,85978.0,0.14444269]
[1741435205554,0.09391764,85979.0,85978.0,0.14444269]
[1741435205752,0.09491764,85979.0,85978.0,0.14444269]
[1741435207165,0.06211764,85979.0,85978.0,0.14544269]
[1741435207465,0.03161764,85979.0,85978.0,0.14544269]
[1741435207862,0.00111764,85979.0,85978.0,0.14544269]
[1741435208254,0.03840868,85985.0,85978.0,0.20826329]
[1741435208453,0.0302,85985.0,85984.0,0.1163216]
[1741435208656,0.0302,85985.0,85984.0,0.15174935]
[1741435208963,0.0302,85985.0,85984.0,0.07405887]
[1741435209154,0.00401756,85985.0,85984.0,0.07405887]
[1741435209355,0.00415418,85985.0,85984.0,0.05220949]
[1741435209653,0.00415418,85985.0,85984.0,0.16853109]
[1741435209849,0.00415418,85985.0,85984.0,0.02811429]
[1741435210060,0.00415418,85985.0,85984.0,0.02911429]
[1741435210357,0.00415418,85985.0,85984.0,0.14543589]
[1741435211157,0.00415418,85985.0,85984.0,0.3550073]
[1741435211563,0.03585418,85985.0,85984.0,0.3550073]
[1741435212953,0.00013662,85985.0,85984.0,0.36668362]
[1741435213159,0.00013662,85985.0,85984.0,0.39888362]
[1741435213862,0.00013662,85985.0,85984.0,0.38703527]
[1741435214063,0.06503662,85985.0,85984.0,0.35483527]
[1741435215060,0.06503662,85985.0,85984.0,0.3549]
[1741435215865,0.00013662,85985.0,85984.0,0.3866]
[1741435216162,0.03113662,85985.0,85984.0,0.3866]
[1741435216369,0.03113662,85985.0,85984.0,0.40844553]
[1741435216562,0.03113662,85985.0,85984.0,0.44427278]
[1741435217659,0.03113662,85985.0,85984.0,0.47457278]
[1741435217860,0.00013662,85985.0,85984.0,0.47457278]
[1741435218171,0.11645682,85985.0,85984.0,0.46285386]
[1741435218368,0.14745682,85985.0,85984.0,0.46285386]
[1741435218558,0.03113662,85985.0,85984.0,0.46285386]
[1741435219366,0.03113662,85985.0,85984.0,0.44100833]
[1741435219863,0.03113662,85985.0,85984.0,0.23243692]
[1741435220964,0.03113662,85985.0,85984.0,0.20832859]
[1741435221366,0.03113662,85985.0,85984.0,0.23021699]
[1741435222066,0.03113662,85985.0,85984.0,0.2543197]
[1741435223466,0.00495385,85985.0,85984.0,0.2324313]
[1741435223671,0.0314,85986.0,85984.0,0.51052651]
[1741435223863,0.0314,85986.0,85985.0,0.12979127]
[1741435224064,0.0052172,85986.0,85985.0,0.12979127]
[1741435224268,0.0052172,85986.0,85985.0,0.19319127]
[1741435224463,0.00534667,85986.0,85985.0,0.2318299]
[1741435224870,0.00012947,85986.0,85985.0,0.23196491]
[1741435225067,0.00012947,85986.0,85985.0,0.2078622]
[1741435225369,0.00012947,85986.0,85985.0,0.22974411]
[1741435226473,0.00012947,85986.0,85985.0,0.25478491]
[1741435226663,0.00012947,85986.0,85985.0,0.25578491]
[1741435227579,0.00012947,85986.0,85985.0,0.29685269]
[1741435227969,0.06721,85987.0,85985.0,0.29685269]
[1741435228174,0.06657,85987.0,85986.0,0.19287467]
[1741435228370,0.06657,85987.0,85986.0,0.12992498]
[1741435228566,0.06657,85987.0,85986.0,0.2744042]
[1741435228966,0.06657,85987.0,85986.0,0.2503634]
[1741435229166,0.06668355,85987.0,85986.0,0.2503634]
[1741435231073,0.06668355,85987.0,85986.0,0.2523634]
[1741435231269,0.06668355,85987.0,85986.0,0.2115609]
[1741435231472,0.18300105,85987.0,85986.0,0.51537198]
[1741435231776,0.12348355,85987.0,85986.0,0.63169088]
[1741435234877,0.12348355,85987.0,85986.0,0.63169695]
[1741435235377,0.12348355,85987.0,85986.0,0.63211389]
[1741435235575,0.12081355,85987.0,85986.0,0.21198391]
[1741435237471,0.09351355,85987.0,85986.0,0.21198391]
[1741435237775,0.06401355,85987.0,85986.0,0.21198391]
[1741435239077,0.18033105,85987.0,85986.0,0.21198391]
[1741435239680,0.06401355,85987.0,85986.0,0.21198391]
[1741435241569,0.06401355,85987.0,85986.0,0.21098391]
[1741435242371,0.04662355,85987.0,85986.0,0.20998391]
[1741435243282,0.04662355,85987.0,85986.0,0.97361588]
[1741435245878,0.04662355,85987.0,85986.0,1.01409488]
[1741435246679,0.04662355,85987.0,85986.0,0.666164]
[1741435246876,0.04662355,85987.0,85986.0,0.66607572]
[1741435247272,0.01026126,85987.0,85986.0,0.66607572]
[1741435247682,0.10881823,86000.0,85999.0,0.1163013]
[1741435247983,0.08263884,86000.0,85999.0,0.16892731]
[1741435248376,0.13943884,86000.0,85999.0,0.16892731]
[1741435248682,0.13071017,86000.0,85999.0,0.16892731]
[1741435248888,0.1045303,86000.0,85999.0,0.25441025]
[1741435249777,0.1045303,86000.0,85999.0,0.23242731]
[1741435250985,0.1045303,86000.0,85999.0,0.23244553]
[1741435251586,0.1045303,86000.0,85999.0,0.20829625]
[1741435251788,0.1045303,86000.0,85999.0,0.23015496]
[1741435252989,0.1045303,86000.0,85999.0,0.25473103]
[1741435253879,0.1045303,86000.0,85999.0,0.13842973]
[1741435255693,0.1045303,86000.0,85999.0,0.25473103]
[1741435256282,0.1045303,86000.0,85999.0,0.13842973]
[1741435256587,0.10444074,86000.0,85999.0,0.25473103]
[1741435257282,0.10444074,86000.0,85999.0,0.13842973]
[1741435257486,0.10444074,86000.0,85999.0,0.25473103]
[1741435257785,0.22088236,86000.0,85999.0,0.25473103]
[1741435257984,0.22074074,86000.0,85999.0,0.15157715]
[1741435258183,0.22074074,86000.0,85999.0,0.13842973]
[1741435258389,0.22074074,86000.0,85999.0,0.15157648]
[1741435259189,0.22074074,86000.0,85999.0,0.08807648]
[1741435260884,0.22087878,86000.0,85999.0,0.07492973]
[1741435261079,0.22074074,86000.0,85999.0,0.07492973]
[1741435261279,0.22087285,86000.0,85999.0,0.13842973]
[1741435261486,0.2208431,86000.0,85999.0,0.13842973]
[1741435261686,0.22074074,86000.0,85999.0,0.13842973]
[1741435261894,0.22074074,86000.0,85999.0,0.15160636]
[1741435262286,0.22074074,86000.0,85999.0,0.15303759]
[1741435262888,0.22074074,86000.0,85999.0,0.15304002]
[1741435263089,0.10444074,86000.0,85999.0,0.26934132]
[1741435263284,0.07722699,86000.0,85999.0,0.15304002]
[1741435263592,0.16734664,86000.0,85999.0,0.26934132]
[1741435263792,0.05104664,86000.0,85999.0,0.26934132]
[1741435263993,0.14116644,86000.0,85999.0,0.182182]
[1741435264394,0.16846644,86000.0,85999.0,0.182182]
[1741435264785,0.16846644,86000.0,85999.0,0.2984833]
[1741435265191,0.16846644,86000.0,85999.0,0.182182]
[1741435265996,0.16846644,86000.0,85999.0,0.15304002]
[1741435266891,0.16838019,86000.0,85999.0,0.08954002]
[1741435269194,0.05208019,86000.0,85999.0,0.08954002]
[1741435269491,0.07759687,86000.0,85999.0,0.20584132]
[1741435269896,0.12959687,86000.0,85999.0,0.20584132]
[1741435270497,0.24589687,86000.0,85999.0,0.20584132]
[1741435271296,0.19389687,86000.0,85999.0,0.20584132]
[1741435271499,0.19389687,86000.0,85999.0,0.20585271]
[1741435272301,0.07759687,86000.0,85999.0,0.20585271]
[1741435272801,0.07747687,86000.0,85999.0,0.20585271]
[1741435273100,0.19377687,86000.0,85999.0,0.08955141]
[1741435273299,0.24577687,86000.0,85999.0,0.08977959]
[1741435273801,0.19377687,86000.0,85999.0,0.08977959]
[1741435274491,0.24577687,86000.0,85999.0,0.08977959]
[1741435274688,0.19377687,86000.0,85999.0,0.08977959]
[1741435275295,0.24577687,86000.0,85999.0,0.08977959]
[1741435276995,0.24566,86000.0,85999.0,0.08977959]
[1741435277396,0.10206,86000.0,85999.0,0.08977959]
[1741435277705,0.1937884,86000.0,85999.0,0.08977959]
[1741435277997,0.19366,86000.0,85999.0,0.08977959]
[1741435278996,0.19366,86000.0,85999.0,0.20608089]
[1741435278997,0.00013416,86000.0,85999.0,0.20608089]
[1741435279204,0.05528372,86001.0,86000.0,0.1163]
[1741435279500,0.05528372,86001.0,86000.0,0.20996309]
[1741435279800,0.05528372,86001.0,86000.0,0.27236309]
[1741435279984,0.01892335,86001.0,86000.0,0.31148526]
[1741435280296,0.01901959,86001.0,86000.0,0.31148526]
[1741435281196,0.01901959,86001.0,86000.0,0.29800879]
[1741435282304,0.01901959,86001.0,86000.0,0.34251728]
[1741435283093,0.01901959,86001.0,86000.0,0.39030371]
[1741435283396,0.01901959,86001.0,86000.0,0.32172042]
[1741435283596,0.01901959,86001.0,86000.0,0.38842908]
[1741435283803,0.01901959,86001.0,86000.0,0.39164477]
[1741435284898,0.01901959,86001.0,86000.0,0.40337852]
[1741435285295,0.01901959,86001.0,86000.0,0.37373939]
[1741435285796,0.4189442,86009.0,86000.0,0.37373939]
[1741435285797,0.00060001,86015.0,86014.0,0.116281]
[1741435285993,0.3608,86032.0,86014.0,0.116281]
[1741435285994,0.3608,86024.0,86014.0,0.11002855]
[1741435286202,0.3608,86024.0,86021.0,0.1162704]
[1741435286502,0.1337064,86025.0,86022.0,0.14270333]
[1741435286705,0.1337064,86025.0,86023.0,0.08130333]
[1741435286706,0.00012596,86024.0,86023.0,0.08130333]
[1741435286905,0.01202994,86024.0,86023.0,0.2366937]
[1741435287102,0.01202994,86024.0,86023.0,0.1508513]
[1741435287308,0.01202994,86024.0,86023.0,0.2671202]
[1741435288497,0.01202994,86024.0,86023.0,0.2681202]
[1741435288905,0.01202994,86024.0,86023.0,0.3011202]
[1741435289501,0.01202994,86024.0,86023.0,0.3021202]
[1741435289703,0.01202994,86024.0,86023.0,0.1858513]
[1741435290205,0.00012596,86024.0,86023.0,0.1858513]
[1741435290503,0.07844596,86024.0,86023.0,0.3021202]
[1741435290710,0.00012596,86024.0,86023.0,0.3021202]
[1741435291003,0.19471346,86024.0,86023.0,0.18571415]
[1741435291306,0.19471346,86024.0,86023.0,0.15637046]
[1741435292799,0.19471346,86024.0,86023.0,0.15537046]
[1741435293110,0.19471346,86024.0,86023.0,0.15637046]
[1741435294800,0.11639346,86024.0,86023.0,0.15637046]
[1741435295000,0.19459346,86024.0,86023.0,0.15637046]
[1741435295508,0.19459346,86024.0,86023.0,0.15628538]
[1741435295509,0.1944675,86024.0,86023.0,0.15628538]
[1741435295709,0.22640078,86024.0,86023.0,0.15628538]
[1741435296007,0.2262675,86024.0,86023.0,0.15628538]
[1741435296305,0.2535675,86024.0,86023.0,0.15628538]
[1741435297011,0.2535675,86024.0,86023.0,0.1549109]
[1741435297511,0.6143675,86024.0,86023.0,0.1549109]
[1741435299106,0.6143675,86024.0,86023.0,0.15489711]
[1741435299901,0.61448134,86024.0,86023.0,0.15489711]
[1741435300102,0.6143675,86024.0,86023.0,0.15489711]
[1741435302204,0.2535675,86024.0,86023.0,0.15489711]
[1741435302606,0.1373,86024.0,86023.0,0.15489711]
[1741435302810,0.2535675,86024.0,86023.0,0.15489711]
[1741435303411,0.2535675,86024.0,86023.0,0.1839994]
[1741435303608,0.2262675,86024.0,86023.0,0.1839994]
[1741435304612,0.20009351,86024.0,86023.0,0.1839994]
[1741435304812,0.20009351,86024.0,86023.0,0.10492217]
[1741435305119,0.20009351,86024.0,86023.0,0.18521254]
[1741435305318,0.19432497,86024.0,86023.0,0.1560732]
[1741435305505,0.22502497,86024.0,86023.0,0.1560732]
[1741435306818,0.22502497,86024.0,86023.0,0.15606461]
[1741435307022,0.25232497,86024.0,86023.0,0.15606461]
[1741435307813,0.22502497,86024.0,86023.0,0.15606461]
[1741435308019,0.19885146,86024.0,86023.0,0.15606461]
[1741435308621,0.22615146,86024.0,86023.0,0.15606461]
[1741435308917,0.22615146,86024.0,86023.0,0.15503476]
[1741435309516,0.10875747,86024.0,86023.0,0.15503476]
[1741435310223,0.22502497,86024.0,86023.0,0.15503476]
[1741435310723,0.25232497,86024.0,86023.0,0.15503476]
[1741435311718,0.25232497,86024.0,86023.0,0.36376912]
[1741435312624,0.22502497,86024.0,86023.0,0.36376912]
[1741435312816,0.22502497,86024.0,86023.0,0.36376785]
[1741435314416,0.25232497,86024.0,86023.0,0.36376785]
[1741435315419,0.22502497,86024.0,86023.0,0.36376785]
[1741435316932,0.22502497,86024.0,86023.0,0.36336311]
[1741435317129,0.5857275,86024.0,86023.0,0.36336311]
[1741435317426,0.6130275,86024.0,86023.0,0.36336311]
[1741435317627,0.6130275,86024.0,86023.0,0.15462875]
[1741435317830,0.5857275,86024.0,86023.0,0.15462875]
[1741435318127,0.5857275,86024.0,86023.0,0.13045944]
[1741435318522,0.5857275,86024.0,86023.0,0.13025787]
[1741435319826,0.5857275,86024.0,86023.0,0.15444121]
[1741435320627,0.5857275,86024.0,86023.0,0.14119861]
[1741435320829,0.5857275,86024.0,86023.0,0.15445941]
[1741435321027,0.5550275,86024.0,86023.0,0.15445941]
[1741435321734,0.1942275,86024.0,86023.0,0.15445941]
[1741435323731,0.1942275,86024.0,86023.0,0.13214392]
[1741435323732,0.16805279,86024.0,86023.0,0.13214392]
[1741435323933,0.16805279,86024.0,86023.0,0.10796058]
[1741435324526,0.16805279,86024.0,86023.0,0.130031]
[1741435328525,0.16805279,86024.0,86023.0,0.15414171]
[1741435330223,0.16805279,86024.0,86023.0,0.15445722]
[1741435332134,0.00897894,86025.0,86024.0,0.1162675]
[1741435332325,0.08688674,86025.0,86024.0,0.22756115]
[1741435333329,0.00912674,86025.0,86024.0,0.26662472]
[1741435333536,0.08684674,86025.0,86024.0,0.26762472]
[1741435334238,0.08684674,86025.0,86024.0,0.26880708]
[1741435335430,0.08684674,86025.0,86024.0,0.268836]
[1741435336126,0.0606735,86025.0,86024.0,0.2693766]
[1741435336335,0.1769397,86025.0,86024.0,0.2693766]
[1741435336635,0.1162662,86025.0,86024.0,0.2693766]
[1741435336828,0.07764,86025.0,86024.0,0.1531091]
[1741435337134,0.19401209,86025.0,86024.0,0.1531091]
[1741435338243,0.19401209,86025.0,86024.0,0.2693766]
[1741435338439,0.19401209,86025.0,86024.0,0.1531091]
[1741435339429,0.16783979,86025.0,86024.0,0.1531091]
[1741435340036,0.16783979,86025.0,86024.0,0.10276357]
[1741435340239,0.16783979,86025.0,86024.0,0.15240378]
[1741435340435,0.05157359,86025.0,86024.0,0.15240378]
[1741435340629,0.05157359,86025.0,86024.0,0.26867128]
[1741435340827,0.1677339,86025.0,86024.0,0.09070378]
[1741435341135,0.1677339,86025.0,86024.0,0.12090378]
[1741435341136,0.2452339,86025.0,86024.0,0.12090378]
[1741435341436,0.2452339,86025.0,86024.0,0.15270378]
[1741435341837,0.2452339,86025.0,86024.0,0.12859307]
[1741435342039,0.2452339,86025.0,86024.0,0.12833657]
[1741435342740,0.2452339,86025.0,86024.0,0.10614423]
[1741435342933,0.2452339,86025.0,86024.0,0.09282282]
[1741435343641,0.24533506,86025.0,86024.0,0.09282282]
[1741435343836,0.2453607,86025.0,86024.0,0.09282282]
[1741435344140,0.2715662,86025.0,86024.0,0.09282282]
[1741435344337,0.2266662,86025.0,86024.0,0.09282282]
[1741435347343,0.2265462,86025.0,86024.0,0.09282282]
[1741435347538,0.07768,86025.0,86024.0,0.09282282]
[1741435347738,0.07784355,86025.0,86024.0,0.09282282]
[1741435348042,0.19410975,86025.0,86024.0,0.09282282]
[1741435348341,0.19410975,86025.0,86024.0,0.19522036]
[1741435348542,0.19410975,86025.0,86024.0,0.09253324]
[1741435348744,0.19410975,86025.0,86024.0,0.22041648]
[1741435348943,0.19410975,86025.0,86024.0,0.09253324]
[1741435349628,0.19410975,86025.0,86024.0,0.11448887]
[1741435349832,0.07784355,86025.0,86024.0,0.22975637]
[1741435350040,0.07784355,86025.0,86024.0,0.2418026]
[1741435350440,0.07784355,86025.0,86024.0,0.2408026]
[1741435350637,0.00012355,86025.0,86024.0,0.2408026]
[1741435350839,0.07772,86031.0,86030.0,0.1162594]
[1741435351031,0.73268,86033.0,86032.0,0.1162567]
[1741435351032,0.74183396,86033.0,86032.0,0.1162567]
[1741435351234,0.74183396,86033.0,86032.0,0.15193412]
[1741435351235,0.71506529,86033.0,86032.0,0.15193412]
[1741435351431,0.71506529,86033.0,86032.0,0.16688698]
[1741435351641,0.71506529,86033.0,86032.0,0.20813149]
[1741435351836,0.00866301,86033.0,86032.0,0.20813149]
[1741435352041,0.12491831,86033.0,86032.0,0.20813149]
[1741435352245,0.00866301,86033.0,86032.0,0.20913149]
[1741435356752,0.3608,86059.0,86032.0,0.31417479]
[1741435356943,0.00861677,86053.0,86052.0,0.1162297]
[1741435357137,0.1162272,86054.0,86052.0,0.37452193]
[1741435357342,0.1162232,86057.0,86053.0,0.04522193]